[Event "23rd Hogeschool Zeeland Open 2019"]
[Site "Vlissingen"]
[Date "2019.08.07"]
[Round "6.13"]
[White "Mityaev, Alexandr"]
[Black "Weber, Dirk"]
[Result "1-0"]
[ECO "D36"]
[WhiteElo "2087"]
[BlackElo "2227"]
[Annotator "ChessBase"]
[PlyCount "55"]
[EventDate "2019.08.03"]
[EventType "swiss"]
[EventCountry "NED"]
[SourceTitle "playchess.com"]
[Source "ChessBase"]
[SourceQuality "1"]
[TimeControl "40/5400+30:1800+30"]

1. d4 {[%emt 0:00:00]} d5 {[%emt 0:00:48]} 2. c4 {[%emt 0:00:00]} e6 {[%emt 0:00:36]} 3. Nc3 {[%emt 0:00:11]} Nf6 {[%emt 0:01:02]} 4. cxd5 {[%emt 0:00:08]} exd5 {[%emt 0:00:31]} 5. Bg5 {[%emt 0:00:14]} c6 {[%emt 0:02:34]} 6. e3 {[%emt 0:02:18]} Nbd7 {[%emt 0:01:28]} 7. Bd3 {[%emt 0:00:15]} Be7 {[%emt 0:06:51]} 8. Qc2 {[%emt 0:00:38]} O-O {[%emt 0:01:54]} 9. Nge2 {[%emt 0:01:00]} Re8 {[%emt 0:03:19]} 10. O-O {[%emt 0:00:34]} Nf8 {[%emt 0:04:36]} 11. Rad1 {[%emt 0:03:53]} g6 {[%emt 0:14:29]} 12. f3 {[%emt 0:01:12]} Ne6 {[%emt 0:01:27]} 13. Bh4 {[%emt 0:04:52]} Ng7 {[%emt 0:06:46]} 14. e4 {[%emt 0:09:52]} Be6 {[%emt 0:11:11]} 15. e5 {[%emt 0:05:12]} Nd7 {[%emt 0:00:20]} 16. Bxe7 {[%emt 0:01:07]} Qxe7 {[%emt 0:00:12]} 17. g4 {[%emt 0:20:08]} h5 {[%emt 0:02:48]} 18. h3 {[%emt 0:00:48]} c5 {[%emt 0:05:31]} 19. Bb5 {[%emt 0:04:08]} cxd4 {[%emt 0:01:10]} 20. Nxd4 {[%emt 0:01:58]} Rec8 {[%emt 0:04:27]} 21. Bxd7 {[%emt 0:04:40]} Qxd7 {[%emt 0:00:40]} 22. Qd2 {[%emt 0:00:47]} a6 {[%emt 0:04:43]} 23. Qg5 {[%emt 0:02:07]} Rd8 {[%emt 0:03:15]} 24. a4 {[%emt 0:06:25]} Rac8 {[%emt 0:01:40]} 25. Kh2 {[%emt 0:01:54]} Rc4 {[%emt 0:02:56]} 26. Rg1 {[%emt 0:02:53]} Kh7 {[%emt 0:04:44]} 27. f4 {[%emt 0:00:33]} Qc7 {[%emt 0:00:38]} 28. gxh5 {[%emt 0:01:19]} 1-0

[Event "23rd Hogeschool Zeeland Open 2019"]
[Site "Vlissingen"]
[Date "2019.08.07"]
[Round "6.14"]
[White "Volkers, Annemarie"]
[Black "Baarslag, Ed"]
[Result "0-1"]
[ECO "B14"]
[WhiteElo "1966"]
[BlackElo "2220"]
[Annotator "ChessBase"]
[PlyCount "46"]
[EventDate "2019.08.03"]
[EventType "swiss"]
[EventCountry "NED"]
[SourceTitle "playchess.com"]
[Source "ChessBase"]
[SourceQuality "1"]
[TimeControl "40/5400+30:1800+30"]

1. e4 {[%emt 0:00:00]} g6 {[%emt 0:00:12]} 2. d4 {[%emt 0:00:11]} c6 {[%emt 0:00:24]} 3. c4 {[%emt 0:03:48]} d5 {[%emt 0:01:39]} 4. exd5 {[%emt 0:00:37]} cxd5 {[%emt 0:00:07]} 5. Nc3 {[%emt 0:00:33]} Nf6 {[%emt 0:00:32]} 6. Qb3 {[%emt 0:01:14]} Bg7 {[%emt 0:05:11]} 7. cxd5 {[%emt 0:00:42]} O-O {[%emt 0:01:10]} 8. Be2 {[%emt 0:01:08]} Na6 {[%emt 0:18:00]} 9. Bf3 {[%emt 0:04:32]} e6 {[%emt 0:08:55]} 10. dxe6 {[%emt 0:08:21]} Bxe6 {[%emt 0:00:11]} 11. Qxb7 {[%emt 0:02:38]} Qa5 {[%emt 0:08:14]} 12. Qb5 {[%emt 0:11:22]} Qxb5 {[%emt 0:01:00]} 13. Nxb5 {[%emt 0:00:04]} Rab8 {[%emt 0:00:11]} 14. Na3 {[%emt 0:06:18]} Nb4 {[%emt 0:07:41]} 15. Be2 {[%emt 0:08:20]} Nxa2 {[%emt 0:01:37]} 16. Bd2 {[%emt 0:03:12]} Ne4 {[%emt 0:06:22]} 17. Nf3 {[%emt 0:04:35]} Nxd2 {[%emt 0:02:38]} 18. Nxd2 {[%emt 0:00:28]} Bxd4 {[%emt 0:09:11]} 19. Nac4 {[%emt 0:00:58]} Nb4 {[%emt 0:01:51]} 20. O-O {[%emt 0:00:55]} Rfc8 {[%emt 0:00:51]} 21. Ra4 {[%emt 0:04:32]} Rc7 {[%emt 0:07:43]} 22. b3 {[%emt 0:00:38]} Nd5 {[%emt 0:01:56]} 23. g3 {[%emt 0:02:32]} Nc3 {[%emt 0:00:35]} 0-1

[Event "23rd Hogeschool Zeeland Open 2019"]
[Site "Vlissingen"]
[Date "2019.08.07"]
[Round "6.15"]
[White "Cordes, Hans-Joerg"]
[Black "Van Liempt, Michael"]
[Result "1-0"]
[ECO "E45"]
[WhiteElo "2178"]
[BlackElo "2091"]
[Annotator "ChessBase"]
[PlyCount "67"]
[EventDate "2019.08.03"]
[EventType "swiss"]
[EventCountry "NED"]
[SourceTitle "playchess.com"]
[Source "ChessBase"]
[SourceQuality "1"]
[TimeControl "40/5400+30:1800+30"]

1. d4 {[%emt 0:00:00]} Nf6 {[%emt 0:00:00]} 2. c4 {[%emt 0:00:22]} e6 {[%emt 0:00:02]} 3. Nc3 {[%emt 0:00:39]} Bb4 {[%emt 0:00:14]} 4. e3 {[%emt 0:00:24]} b6 {[%emt 0:00:19]} 5. Nge2 {[%emt 0:00:36]} Ba6 {[%emt 0:00:35]} 6. a3 {[%emt 0:00:29]} Bxc3+ {[%emt 0:00:36]} 7. Nxc3 {[%emt 0:00:08]} d5 {[%emt 0:00:43]} 8. Qf3 {[%emt 0:01:06]} c6 {[%emt 0:03:11]} 9. b3 {[%emt 0:01:10]} Nbd7 {[%emt 0:05:38]} 10. Bb2 {[%emt 0:00:31]} Rc8 {[%emt 0:02:11]} 11. g4 {[%emt 0:10:41]} Bb7 {[%emt 0:10:09]} 12. g5 {[%emt 0:22:31]} Ng8 {[%emt 0:03:42]} 13. cxd5 {[%emt 0:06:27]} cxd5 {[%emt 0:02:36]} 14. Nb5 {[%emt 0:04:04]} Rc2 {[%emt 0:04:48]} 15. Bc3 {[%emt 0:07:37]} Rxc3 {[%emt 0:07:52]} 16. Nxc3 {[%emt 0:01:28]} a6 {[%emt 0:01:21]} 17. h4 {[%emt 0:03:08]} Ne7 {[%emt 0:02:38]} 18. Bd3 {[%emt 0:01:08]} e5 {[%emt 0:02:20]} 19. Qe2 {[%emt 0:01:43]} e4 {[%emt 0:01:11]} 20. Bc2 {[%emt 0:09:42]} Qc7 {[%emt 0:02:36]} 21. Kd2 {[%emt 0:00:14]} O-O {[%emt 0:00:52]} 22. Rac1 {[%emt 0:01:17]} Qd6 {[%emt 0:03:39]} 23. b4 {[%emt 0:01:03]} f5 {[%emt 0:02:55]} 24. f4 {[%emt 0:01:40]} exf3 {[%emt 0:01:08]} 25. Qxf3 {[%emt 0:00:05]} b5 {[%emt 0:09:34]} 26. Qf4 {[%emt 0:07:40]} Qe6 {[%emt 0:02:11]} 27. Rhf1 {[%emt 0:03:05]} g6 {[%emt 0:06:02]} 28. Bb3 {[%emt 0:00:44]} Nc8 {[%emt 0:01:04]} 29. Qc7 {[%emt 0:02:58]} Ba8 {[%emt 0:01:21]} 30. Ne2 {[%emt 0:12:20]} Re8 {[%emt 0:02:27]} 31. Rc3 {[%emt 0:00:00]} Nd6 {[%emt 0:01:57]} 32. Nf4 {[%emt 0:00:00]} Ne4+ {[%emt 0:00:37]} 33. Kc2 {[%emt 0:00:00]} Qf7 {[%emt 0:00:52]} 34. Rc6 {[%emt 0:00:00]} 1-0

[Event "23rd Hogeschool Zeeland Open 2019"]
[Site "Vlissingen"]
[Date "2019.08.08"]
[Round "7.1"]
[White "Van Wely, Loek"]
[Black "Kamsky, Gata"]
[Result "1/2-1/2"]
[ECO "D15"]
[WhiteElo "2616"]
[BlackElo "2673"]
[Annotator "ChessBase"]
[PlyCount "34"]
[EventDate "2019.08.03"]
[EventType "swiss"]
[EventCountry "NED"]
[SourceTitle "playchess.com"]
[Source "ChessBase"]
[SourceQuality "1"]
[TimeControl "40/5400+30:1800+30"]

1. Nf3 {[%emt 0:02:39]} Nf6 {[%emt 0:00:00]} 2. c4 {[%emt 0:00:10]} c6 {[%emt 0:00:00]} 3. Nc3 {[%emt 0:00:08]} d5 {[%emt 0:00:00]} 4. d4 {[%emt 0:00:05]} a6 {[%emt 0:00:00]} 5. a4 {[%emt 0:00:05]} e6 {[%emt 0:02:46]} 6. g3 {[%emt 0:00:55]} Nbd7 {[%emt 0:12:30]} 7. Bg2 {[%emt 0:01:12]} Bb4 {[%emt 0:00:06]} 8. O-O {[%emt 0:00:24]} O-O {[%emt 0:00:37]} 9. Qc2 {[%emt 0:00:49]} a5 {[%emt 0:03:20]} 10. Rd1 {[%emt 0:16:47]} b6 {[%emt 0:17:06]} 11. Bf4 {[%emt 0:07:49]} Ba6 {[%emt 0:00:32]} 12. cxd5 {[%emt 0:01:24]} cxd5 {[%emt 0:00:07]} 13. Nb5 {[%emt 0:00:20]} Rc8 {[%emt 0:10:22]} 14. Qb3 {[%emt 0:01:28]} Ne4 {[%emt 0:06:26]} 15. Rac1 {[%emt 0:02:04]} Qe7 {[%emt 0:11:54]} 16. Ne1 {[%emt 0:20:56]} Nd6 {[%emt 0:08:03]} 17. Bxd6 {[%emt 0:21:37]} Bxd6 {[%emt 0:24:41]} 1/2-1/2

[Event "23rd Hogeschool Zeeland Open 2019"]
[Site "Vlissingen"]
[Date "2019.08.08"]
[Round "7.2"]
[White "L'Ami, Erwin"]
[Black "Werle, Jan"]
[Result "1/2-1/2"]
[ECO "D38"]
[WhiteElo "2633"]
[BlackElo "2555"]
[Annotator "ChessBase"]
[PlyCount "69"]
[EventDate "2019.08.03"]
[EventType "swiss"]
[EventCountry "NED"]
[SourceTitle "playchess.com"]
[Source "ChessBase"]
[SourceQuality "1"]
[TimeControl "40/5400+30:1800+30"]

1. d4 {[%emt 0:00:00]} Nf6 {[%emt 0:00:00]} 2. c4 {[%emt 0:00:00]} e6 {[%emt 0:00:00]} 3. Nf3 {[%emt 0:00:08]} d5 {[%emt 0:00:20]} 4. Nc3 {[%emt 0:00:11]} Bb4 {[%emt 0:00:18]} 5. cxd5 {[%emt 0:01:44]} exd5 {[%emt 0:00:18]} 6. Bg5 {[%emt 0:00:08]} h6 {[%emt 0:00:41]} 7. Bxf6 {[%emt 0:00:16]} Qxf6 {[%emt 0:00:06]} 8. Qb3 {[%emt 0:00:10]} c5 {[%emt 0:04:40]} 9. e3 {[%emt 0:00:49]} O-O {[%emt 0:03:35]} 10. dxc5 {[%emt 0:00:32]} Bxc3+ {[%emt 0:01:51]} 11. Qxc3 {[%emt 0:00:14]} Qxc3+ {[%emt 0:00:07]} 12. bxc3 {[%emt 0:00:06]} Nd7 {[%emt 0:01:27]} 13. Rd1 {[%emt 0:00:11]} Nxc5 {[%emt 0:00:31]} 14. Rxd5 {[%emt 0:00:10]} b6 {[%emt 0:00:50]} 15. Rd2 {[%emt 0:01:09]} Bb7 {[%emt 0:17:52]} 16. Nd4 {[%emt 0:05:01]} Ne4 {[%emt 0:08:45]} 17. Rc2 {[%emt 0:00:38]} Rac8 {[%emt 0:00:29]} 18. c4 {[%emt 0:05:12]} Nd6 {[%emt 0:00:37]} 19. f3 {[%emt 0:27:27]} Ba6 {[%emt 0:09:23]} 20. Kf2 {[%emt 0:02:21]} Bxc4 {[%emt 0:02:06]} 21. Nf5 {[%emt 0:09:12]} Nxf5 {[%emt 0:00:49]} 22. Bxc4 {[%emt 0:00:11]} Nd6 {[%emt 0:01:59]} 23. Bb3 {[%emt 0:03:11]} Rxc2+ {[%emt 0:00:20]} 24. Bxc2 {[%emt 0:00:06]} Rc8 {[%emt 0:00:17]} 25. Bb3 {[%emt 0:01:26]} Kf8 {[%emt 0:04:44]} 26. e4 {[%emt 0:02:01]} Ke7 {[%emt 0:03:19]} 27. Rd1 {[%emt 0:02:18]} f6 {[%emt 0:09:20]} 28. Rd5 {[%emt 0:03:14]} Nc4 {[%emt 0:02:39]} 29. Kg3 {[%emt 0:02:52]} g6 {[%emt 0:01:29]} 30. h4 {[%emt 0:01:31]} h5 {[%emt 0:01:50]} 31. Kf4 {[%emt 0:02:29]} Ne5 {[%emt 0:04:53]} 32. Ke3 {[%emt 0:03:33]} Rc1 {[%emt 0:01:46]} 33. Rd1 {[%emt 0:03:17]} Rc5 {[%emt 0:01:18]} 34. Rd5 {[%emt 0:07:47]} Rc1 {[%emt 0:00:09]} 35. Rd1 {[%emt 0:01:07]} 1/2-1/2

[Event "23rd Hogeschool Zeeland Open 2019"]
[Site "Vlissingen"]
[Date "2019.08.08"]
[Round "7.3"]
[White "Romanishin, Oleg M"]
[Black "Harika, Dronavalli"]
[Result "1/2-1/2"]
[ECO "E62"]
[WhiteElo "2443"]
[BlackElo "2492"]
[Annotator "ChessBase"]
[PlyCount "23"]
[EventDate "2019.08.03"]
[EventType "swiss"]
[EventCountry "NED"]
[SourceTitle "playchess.com"]
[Source "ChessBase"]
[SourceQuality "1"]
[TimeControl "40/5400+30:1800+30"]

1. d4 {[%emt 0:00:00]} Nf6 {[%emt 0:00:00]} 2. Nf3 {[%emt 0:00:00]} g6 {[%emt 0:00:02]} 3. g3 {[%emt 0:00:00]} Bg7 {[%emt 0:00:07]} 4. Bg2 {[%emt 0:00:00]} O-O {[%emt 0:00:07]} 5. c4 {[%emt 0:01:06]} d6 {[%emt 0:00:16]} 6. O-O {[%emt 0:00:08]} Nc6 {[%emt 0:00:12]} 7. Nc3 {[%emt 0:00:08]} e5 {[%emt 0:00:13]} 8. d5 {[%emt 0:06:48]} Nb8 {[%emt 0:00:28]} 9. c5 {[%emt 0:05:33]} Na6 {[%emt 0:06:22]} 10. cxd6 {[%emt 0:00:32]} cxd6 {[%emt 0:00:09]} 11. a4 {[%emt 0:09:35]} Bf5 {[%emt 0:06:04]} 12. Nh4 {[%emt 0:20:12]} 1/2-1/2

[Event "23rd Hogeschool Zeeland Open 2019"]
[Site "Vlissingen"]
[Date "2019.08.08"]
[Round "7.4"]
[White "De Jong, Migchiel"]
[Black "Leenhouts, Koen"]
[Result "1/2-1/2"]
[ECO "A31"]
[WhiteElo "2345"]
[BlackElo "2426"]
[Annotator "RC"]
[PlyCount "114"]
[EventDate "2019.08.03"]
[EventType "swiss"]
[EventCountry "NED"]
[SourceTitle "playchess.com"]
[Source "ChessBase"]
[SourceQuality "1"]
[TimeControl "40/5400+30:1800+30"]

1. Nf3 {[%emt 0:00:00]} Nf6 {[%emt 0:00:00]} 2. c4 {[%emt 0:00:00]} c5 {[%emt 0:00:10]} 3. d4 {[%emt 0:00:28]} cxd4 {[%emt 0:00:23]} 4. Nxd4 {[%emt 0:00:08]} g6 {[%emt 0:00:09]} 5. Nc3 {[%emt 0:00:27]} d5 {[%emt 0:00:18]} 6. e3 {[%emt 0:09:48]} dxc4 {[%emt 0:07:24]} 7. Bxc4 {[%emt 0:01:31]} Bg7 {[%emt 0:00:14]} 8. Qa4+ {[%emt 0:03:18]} Nc6 {[%emt 0:04:36]} 9. Nxc6 {[%emt 0:01:53]} bxc6 {[%emt 0:00:05]} 10. Qxc6+ {[%emt 0:02:04]} Bd7 {[%emt 0:00:04]} 11. Qf3 {[%emt 0:01:24]} Rc8 {[%emt 0:06:52]} 12. Qe2 {[%emt 0:01:56]} O-O {[%emt 0:03:33]} 13. O-O {[%emt 0:02:49]} Rc5 {[%emt 0:07:38]} 14. Bb3 {[%emt 0:11:23]} Qb8 {[%emt 0:01:19]} 15. f3 {[%emt 0:03:31]} a5 {[%emt 0:02:47]} 16. Rd1 {[%emt 0:03:41]} Rh5 {[%emt 0:09:54]} 17. g3 {[%emt 0:01:02]} Rc8 {[%emt 0:01:43]} 18. Bd2 {[%emt 0:03:18]} Rcc5 {[%emt 0:05:46]} 19. Be1 {[%emt 0:01:13]} Rce5 {[%emt 0:14:48]} 20. Rd4 {[%emt 0:03:56]} Bc6 {[%emt 0:08:16]} 21. Rad1 {[%emt 0:01:33]} Qb7 {[%emt 0:00:09]} 22. e4 {[%emt 0:00:25]} Rh3 {[%emt 0:05:26]} 23. Qc4 {[%emt 0:01:03]} e6 {[%emt 0:01:05]} 24. Rd8+ {[%emt 0:00:40]} Bf8 {[%emt 0:07:22]} 25. Qd4 {[%emt 0:02:02]} Qc7 {[%emt 0:02:20]} 26. Ne2 {[%emt 0:01:22]} Be8 {[%emt 0:02:19]} 27. Rc1 {[%emt 0:07:12]} Rc5 {[%emt 0:03:11]} 28. Bc3 {[%emt 0:03:50]} e5 {[%emt 0:00:56]} 29. Qd2 {[%emt 0:00:56]} a4 {[%emt 0:01:12]} 30. Bc2 {[%emt 0:05:08]} Bh6 {[%emt 0:00:02]} 31. f4 {[%emt 0:01:02]} Kg7 {[%emt 0:01:39]} 32. Kg2 {[%emt 0:01:49]} Rh5 {[%emt 0:01:16]} 33. Qd6 {[%emt 0:03:31]} Qxd6 {[%emt 0:02:16]} 34. Rxd6 {[%emt 0:00:06]} Ng4 {[%emt 0:01:03]} 35. h4 {[%emt 0:00:52]} a3 {[%emt 0:00:38]} 36. b4 {[%emt 0:00:54]} Rxc3 {[%emt 0:00:08]} 37. Nxc3 {[%emt 0:00:13]} exf4 {[%emt 0:00:01]} 38. Re1 {[%emt 0:02:11]} Ne3+ {[%emt 0:00:39]} 39. Rxe3 {[%emt 0:00:14]} fxe3 {[%emt 0:00:01]} 40. Rd5 {[%emt 0:00:45]} Rxd5 {[%emt 0:00:49]} 41. exd5 {[%emt 0:32:40]} Kf8 {[%emt 0:04:46]} 42. Kf3 {[%emt 0:00:00]} Ke7 {[%emt 0:01:56]} 43. Bb3 {[%emt 0:00:00]} Kd8 {[%emt 0:04:23]} 44. Bc4 {[%emt 0:00:00]} Kc7 {[%emt 0:02:41]} 45. Nb1 {[%emt 0:00:00]} Bf8 {[%emt 0:01:16]} 46. Nxa3 {[%emt 0:00:00]} Bxb4 {[%emt 0:00:05]} 47. Nc2 {[%emt 0:00:00]} Bc5 {[%emt 0:00:03]} 48. Nxe3 {[%emt 0:00:00]} Kd6 {[%emt 0:00:03]} 49. Ng4 {[%emt 0:00:00]} Bd4 {[%emt 0:00:24]} 50. Nf2 {[%emt 0:00:00]} f5 {[%emt 0:01:12]} 51. Nd3 {[%emt 0:00:00]} h6 {[%emt 0:03:55]} 52. g4 {[%emt 0:00:00]} fxg4+ {[%emt 0:00:15]} 53. Kxg4 {[%emt 0:00:00]} Bd7+ {[%emt 0:00:09]} 54. Kg3 {[%emt 0:00:00]} g5 {[%emt 0:01:20]} 55. hxg5 {[%emt 0:00:00]} hxg5 {[%emt 0:00:05]} 56. Bb3 {[%emt 0:00:00]} Bf5 {[%emt 0:00:24]} 57. Nf2 {[%emt 0:00:00]} Bxf2+ {[%emt 0:00:50]} 1/2-1/2

[Event "23rd Hogeschool Zeeland Open 2019"]
[Site "Vlissingen"]
[Date "2019.08.08"]
[Round "7.5"]
[White "Ortiz Suarez, Isan Reynaldo"]
[Black "Stillger, Bernhard"]
[Result "1/2-1/2"]
[ECO "E05"]
[WhiteElo "2551"]
[BlackElo "2199"]
[Annotator "ChessBase"]
[PlyCount "106"]
[EventDate "2019.08.03"]
[EventType "swiss"]
[EventCountry "NED"]
[SourceTitle "playchess.com"]
[Source "ChessBase"]
[SourceQuality "1"]
[TimeControl "40/5400+30:1800+30"]

1. Nf3 {[%emt 0:00:00]} Nf6 {[%emt 0:07:41]} 2. c4 {[%emt 0:00:02]} e6 {[%emt 0:00:36]} 3. g3 {[%emt 0:00:14]} d5 {[%emt 0:00:11]} 4. Bg2 {[%emt 0:00:06]} Be7 {[%emt 0:00:51]} 5. O-O {[%emt 0:00:14]} O-O {[%emt 0:04:13]} 6. d4 {[%emt 0:00:25]} dxc4 {[%emt 0:00:40]} 7. Ne5 {[%emt 0:00:14]} Nc6 {[%emt 0:00:51]} 8. Nxc6 {[%emt 0:00:09]} bxc6 {[%emt 0:00:16]} 9. Na3 {[%emt 0:00:07]} Bxa3 {[%emt 0:00:34]} 10. bxa3 {[%emt 0:00:06]} Ba6 {[%emt 0:01:16]} 11. Qd2 {[%emt 0:01:40]} Rb8 {[%emt 0:01:46]} 12. Qa5 {[%emt 0:00:33]} Qc8 {[%emt 0:02:02]} 13. a4 {[%emt 0:06:30]} Rd8 {[%emt 0:07:59]} 14. Rd1 {[%emt 0:08:13]} c3 {[%emt 0:13:25]} 15. Qxc3 {[%emt 0:00:25]} Bxe2 {[%emt 0:00:32]} 16. Re1 {[%emt 0:00:02]} Qa6 {[%emt 0:06:47]} 17. Bg5 {[%emt 0:00:26]} Qc4 {[%emt 0:03:46]} 18. Qa5 {[%emt 0:04:01]} Qxd4 {[%emt 0:07:42]} 19. Be3 {[%emt 0:07:07]} Qc4 {[%emt 0:10:21]} 20. Bg5 {[%emt 0:24:04]} Qd4 {[%emt 0:03:42]} 21. Rac1 {[%emt 0:01:39]} Bd3 {[%emt 0:04:05]} 22. Be3 {[%emt 0:04:28]} Qb4 {[%emt 0:05:59]} 23. Qxb4 {[%emt 0:00:22]} Rxb4 {[%emt 0:00:02]} 24. Bxc6 {[%emt 0:00:08]} Nd5 {[%emt 0:06:24]} 25. Bxa7 {[%emt 0:01:10]} h5 {[%emt 0:01:13]} 26. Red1 {[%emt 0:08:16]} Ba6 {[%emt 0:01:03]} 27. Rd2 {[%emt 0:06:02]} Rc4 {[%emt 0:01:09]} 28. Rxc4 {[%emt 0:02:07]} Bxc4 {[%emt 0:00:01]} 29. Bb7 {[%emt 0:00:34]} Ba6 {[%emt 0:02:07]} 30. Bxa6 {[%emt 0:03:21]} Ra8 {[%emt 0:00:07]} 31. Bb7 {[%emt 0:00:25]} Rxa7 {[%emt 0:00:02]} 32. Bxd5 {[%emt 0:00:10]} exd5 {[%emt 0:00:00]} 33. Rxd5 {[%emt 0:00:13]} Rxa4 {[%emt 0:00:30]} 34. Rxh5 {[%emt 0:00:04]} Rxa2 {[%emt 0:00:09]} 35. Rc5 {[%emt 0:00:03]} Ra7 {[%emt 0:00:18]} 36. h4 {[%emt 0:00:03]} g6 {[%emt 0:00:09]} 37. Kg2 {[%emt 0:00:08]} Kg7 {[%emt 0:01:49]} 38. g4 {[%emt 0:00:15]} Ra4 {[%emt 0:01:44]} 39. Kg3 {[%emt 0:00:14]} Ra3+ {[%emt 0:00:16]} 40. f3 {[%emt 0:00:05]} Ra7 {[%emt 0:00:05]} 41. Rc6 {[%emt 0:30:38]} Rb7 {[%emt 0:30:13]} 42. g5 {[%emt 0:00:57]} Ra7 {[%emt 0:01:56]} 43. Kg4 {[%emt 0:00:53]} Ra4+ {[%emt 0:00:42]} 44. Kg3 {[%emt 0:01:15]} Ra7 {[%emt 0:00:26]} 45. Rc4 {[%emt 0:00:04]} Rb7 {[%emt 0:00:52]} 46. Kg4 {[%emt 0:00:06]} Ra7 {[%emt 0:00:31]} 47. f4 {[%emt 0:01:22]} Ra1 {[%emt 0:00:45]} 48. h5 {[%emt 0:04:01]} Rg1+ {[%emt 0:01:20]} 49. Kf3 {[%emt 0:00:02]} gxh5 {[%emt 0:01:08]} 50. Rxc7 {[%emt 0:00:04]} h4 {[%emt 0:00:46]} 51. Rc6 {[%emt 0:00:03]} h3 {[%emt 0:00:59]} 52. Rh6 {[%emt 0:00:07]} f6 {[%emt 0:03:59]} 53. Ke4 {[%emt 0:22:33]} Kg8 {[%emt 0:00:30]} 1/2-1/2

[Event "23rd Hogeschool Zeeland Open 2019"]
[Site "Vlissingen"]
[Date "2019.08.08"]
[Round "7.6"]
[White "Ikonnikov, Vyacheslav"]
[Black "Cordes, Hans-Joerg"]
[Result "1-0"]
[ECO "D53"]
[WhiteElo "2499"]
[BlackElo "2178"]
[Annotator "ChessBase"]
[PlyCount "87"]
[EventDate "2019.08.03"]
[EventType "swiss"]
[EventCountry "NED"]
[SourceTitle "playchess.com"]
[Source "ChessBase"]
[SourceQuality "1"]
[TimeControl "40/5400+30:1800+30"]

1. d4 {[%emt 0:00:00]} e6 {[%emt 0:00:00]} 2. c4 {[%emt 0:00:00]} Nf6 {[%emt 0:00:20]} 3. Nf3 {[%emt 0:00:31]} d5 {[%emt 0:00:13]} 4. Nc3 {[%emt 0:00:17]} Be7 {[%emt 0:00:22]} 5. Bg5 {[%emt 0:00:29]} h6 {[%emt 0:00:23]} 6. Bxf6 {[%emt 0:00:23]} Bxf6 {[%emt 0:00:07]} 7. e3 {[%emt 0:00:13]} c6 {[%emt 0:02:42]} 8. Rc1 {[%emt 0:00:46]} Nd7 {[%emt 0:01:12]} 9. a3 {[%emt 0:02:36]} O-O {[%emt 0:00:43]} 10. h3 {[%emt 0:00:17]} g6 {[%emt 0:02:36]} 11. Bd3 {[%emt 0:07:32]} Bg7 {[%emt 0:02:57]} 12. O-O {[%emt 0:01:23]} dxc4 {[%emt 0:09:02]} 13. Bxc4 {[%emt 0:00:04]} e5 {[%emt 0:00:26]} 14. Ba2 {[%emt 0:00:48]} Qe7 {[%emt 0:29:03]} 15. Qc2 {[%emt 0:03:59]} Kh8 {[%emt 0:00:56]} 16. d5 {[%emt 0:00:20]} Nf6 {[%emt 0:02:09]} 17. e4 {[%emt 0:04:43]} Nh5 {[%emt 0:01:32]} 18. Rfd1 {[%emt 0:01:44]} Qf6 {[%emt 0:04:41]} 19. dxc6 {[%emt 0:04:32]} bxc6 {[%emt 0:00:20]} 20. Ne2 {[%emt 0:00:54]} Rb8 {[%emt 0:09:02]} 21. Rd3 {[%emt 0:01:47]} Ba6 {[%emt 0:01:00]} 22. Rc3 {[%emt 0:00:39]} Rb6 {[%emt 0:09:34]} 23. b4 {[%emt 0:01:37]} Rd8 {[%emt 0:00:09]} 24. Bc4 {[%emt 0:01:03]} Bc8 {[%emt 0:00:08]} 25. Rd1 {[%emt 0:01:50]} Rxd1+ {[%emt 0:04:22]} 26. Qxd1 {[%emt 0:00:03]} Bf8 {[%emt 0:00:12]} 27. Rd3 {[%emt 0:01:30]} Be7 {[%emt 0:00:21]} 28. Qa1 {[%emt 0:05:41]} Bd6 {[%emt 0:00:59]} 29. Rxd6 {[%emt 0:00:27]} Qxd6 {[%emt 0:00:07]} 30. Nxe5 {[%emt 0:00:05]} Qf6 {[%emt 0:12:50]} 31. g4 {[%emt 0:01:01]} Kh7 {[%emt 0:03:18]} 32. gxh5 {[%emt 0:01:17]} Bxh3 {[%emt 0:00:28]} 33. Bxf7 {[%emt 0:05:50]} gxh5 {[%emt 0:00:27]} 34. Bg6+ {[%emt 0:03:38]} Kg7 {[%emt 0:00:09]} 35. Ng3 {[%emt 0:01:43]} Kg8 {[%emt 0:00:41]} 36. Nxh5 {[%emt 0:02:34]} Qg5+ {[%emt 0:00:24]} 37. Ng3 {[%emt 0:00:06]} c5 {[%emt 0:01:00]} 38. bxc5 {[%emt 0:10:21]} Rxg6 {[%emt 0:00:35]} 39. Nxg6 {[%emt 0:00:05]} Qxg6 {[%emt 0:00:07]} 40. Qe5 {[%emt 0:00:11]} a6 {[%emt 0:00:46]} 41. Kh2 {[%emt 0:33:22]} Bg4 {[%emt 0:31:50]} 42. Kg2 {[%emt 0:03:03]} Bd7 {[%emt 0:00:00]} 43. f3 {[%emt 0:00:00]} Kf7 {[%emt 0:00:00]} 44. Kf2 {[%emt 0:00:00]} 1-0

[Event "23rd Hogeschool Zeeland Open 2019"]
[Site "Vlissingen"]
[Date "2019.08.08"]
[Round "7.8"]
[White "Zwirs, Nico"]
[Black "Mesman, Edwyn"]
[Result "1-0"]
[ECO "A16"]
[WhiteElo "2380"]
[BlackElo "2204"]
[Annotator "RC"]
[PlyCount "75"]
[EventDate "2019.08.03"]
[EventType "swiss"]
[EventCountry "NED"]
[SourceTitle "playchess.com"]
[Source "ChessBase"]
[SourceQuality "1"]
[TimeControl "40/5400+30:1800+30"]

1. c4 {[%emt 0:00:00]} Nf6 {[%emt 0:00:11]} 2. Nc3 {[%emt 0:00:00]} g6 {[%emt 0:05:34]} 3. e4 {[%emt 0:03:24]} e5 {[%emt 0:01:07]} 4. Nf3 {[%emt 0:02:34]} Bg7 {[%emt 0:00:14]} 5. Be2 {[%emt 0:08:06]} O-O {[%emt 0:00:53]} 6. O-O {[%emt 0:00:25]} Nc6 {[%emt 0:00:52]} 7. d3 {[%emt 0:04:42]} d6 {[%emt 0:00:51]} 8. Rb1 {[%emt 0:00:20]} h6 {[%emt 0:04:36]} 9. b4 {[%emt 0:03:28]} Bg4 {[%emt 0:08:12]} 10. Be3 {[%emt 0:04:34]} Nd7 {[%emt 0:09:15]} 11. Qd2 {[%emt 0:09:18]} Kh7 {[%emt 0:00:51]} 12. Ng5+ {[%emt 0:10:36]} hxg5 {[%emt 0:00:47]} 13. Bxg4 {[%emt 0:00:02]} f5 {[%emt 0:08:52]} 14. exf5 {[%emt 0:01:32]} gxf5 {[%emt 0:00:32]} 15. Bxg5 {[%emt 0:00:06]} Qe8 {[%emt 0:01:08]} 16. Bh3 {[%emt 0:00:27]} Qg6 {[%emt 0:03:42]} 17. f4 {[%emt 0:04:27]} Nd4 {[%emt 0:03:40]} 18. Nd5 {[%emt 0:20:02]} exf4 {[%emt 0:16:08]} 19. Bxf4 {[%emt 0:03:09]} Rae8 {[%emt 0:01:23]} 20. Rbe1 {[%emt 0:02:25]} Ne5 {[%emt 0:04:37]} 21. Kh1 {[%emt 0:05:15]} c6 {[%emt 0:12:06]} 22. Ne3 {[%emt 0:00:05]} Kg8 {[%emt 0:00:16]} 23. c5 {[%emt 0:07:06]} d5 {[%emt 0:03:10]} 24. Nc2 {[%emt 0:03:59]} Nb5 {[%emt 0:04:15]} 25. Bxe5 {[%emt 0:00:39]} Rxe5 {[%emt 0:00:40]} 26. Rxe5 {[%emt 0:00:11]} Bxe5 {[%emt 0:00:06]} 27. d4 {[%emt 0:00:05]} Bg7 {[%emt 0:02:13]} 28. Qd3 {[%emt 0:00:15]} Qg5 {[%emt 0:01:49]} 29. Bxf5 {[%emt 0:01:50]} Kh8 {[%emt 0:00:21]} 30. a4 {[%emt 0:01:37]} Nc7 {[%emt 0:00:43]} 31. Ne3 {[%emt 0:00:58]} Re8 {[%emt 0:05:08]} 32. Ng4 {[%emt 0:01:49]} Qh4 {[%emt 0:00:08]} 33. g3 {[%emt 0:00:25]} Qg5 {[%emt 0:00:15]} 34. Kg2 {[%emt 0:00:40]} Qe7 {[%emt 0:01:07]} 35. Rf2 {[%emt 0:00:54]} Na6 {[%emt 0:00:13]} 36. b5 {[%emt 0:00:35]} Nb4 {[%emt 0:00:12]} 37. Qd2 {[%emt 0:00:22]} Qe1 {[%emt 0:00:11]} 38. Qg5 {[%emt 0:00:21]} 1-0